fUSD/lending_fUSD_20250530
["ID","MTS","AMOUNT","RATE_DAILY","PERIOD"]
[363148194,1748599842612,-2165.28,0.00021917,2]
[363148196,1748599842621,-632.2,0.00021917,2]
[363148199,1748599842630,-438.53,0.00021917,2]
[363148201,1748599842640,-420.0,0.00021917,2]
[363148202,1748599842649,-882.54,0.00021917,2]
[363148203,1748599842658,-420.0,0.00021917,2]
[363148204,1748599842668,-160.0,0.00021917,2]
[363148205,1748599842677,-236.95989469,0.00021917,2]
[363148206,1748599842690,-183.04010531,0.00021917,2]
[363148207,1748599842699,-449.28748632,0.00021917,2]
[363148208,1748599842708,-420.0,0.00021917,2]
[363148209,1748599842717,-500.0,0.00021917,2]
[363148210,1748599842726,-509.9,0.00021917,2]
[363148211,1748599842735,-420.0,0.00021917,2]
[363148212,1748599842745,-830.84,0.00021917,2]
[363148213,1748599842754,-678.74,0.00021917,2]
[363148214,1748599842766,-420.0,0.00021917,2]
[363148215,1748599842775,-420.0,0.00021917,2]
[363148216,1748599842784,-420.0,0.00021917,2]
[363148217,1748599842792,-541.82,0.00021917,2]
[363148218,1748599842801,-554.82,0.00021917,2]
[363148219,1748599842810,-420.0,0.00021917,2]
[363148220,1748599842819,-1163.07,0.00021917,2]
[363148221,1748599842828,-736.18,0.00021917,2]
[363148222,1748599842837,-420.0,0.00021917,2]
[363148223,1748599842847,-420.0,0.00021917,2]
[363148224,1748599842856,-630.41,0.00021917,2]
[363148225,1748599842865,-500.0,0.00021917,2]
[363148226,1748599842874,-420.0,0.00021917,2]
[363148227,1748599842883,-420.0,0.00021917,2]
[363148228,1748599842893,-420.0,0.00021917,2]
[363148229,1748599842902,-420.0,0.00021917,2]
[363148230,1748599842912,-271.72721888,0.00021917,2]
[363148231,1748599842922,-3293.54620311,0.00021917,2]
[363148232,1748599842931,-420.0,0.00021917,2]
[363148233,1748599842941,-420.0,0.00021917,2]
[363148234,1748599842951,-420.0,0.00021917,2]
[363148235,1748599842961,-420.0,0.00021917,2]
[363148236,1748599842970,-484.02,0.00021917,2]
[363148237,1748599842979,-666.65,0.00021917,2]
[363148238,1748599842988,-420.0,0.00021917,2]
[363148239,1748599842998,-420.0,0.00021917,2]
[363148240,1748599843008,-500.0,0.00021917,2]
[363148241,1748599843020,-420.0,0.00021917,2]
[363148242,1748599843029,-420.0,0.00021917,2]
[363148243,1748599843039,-617.88,0.00021917,2]
[363148244,1748599843049,-1228.12,0.00021917,2]
[363148246,1748599843059,-541.62,0.00021917,2]
[363148247,1748599843069,-420.0,0.00021917,2]
[363148248,1748599843079,-420.0,0.00021917,2]
[363148249,1748599843088,-917.84,0.00021917,2]
[363148250,1748599843098,-502.03639381,0.00021917,2]
[363148251,1748599843107,-554.21,0.00021917,2]
[363148253,1748599843117,-500.0,0.00021917,2]
[363148255,1748599843127,-604.08,0.00021917,2]
[363148257,1748599843137,-420.0,0.00021917,2]
[363148259,1748599843146,-1763.56,0.00021917,2]
[363148261,1748599843156,-420.0,0.00021917,2]
[363148263,1748599843166,-420.0,0.00021917,2]
[363148265,1748599843176,-420.0,0.00021917,2]
[363148267,1748599843190,-841.07,0.00021917,2]
[363148269,1748599843200,-420.0,0.00021917,2]
[363148271,1748599843210,-420.0,0.00021917,2]
[363148273,1748599843219,-420.0,0.00021917,2]
[363148275,1748599843230,-545.5,0.00021917,2]
[363148277,1748599843240,-420.0,0.00021917,2]
[363148279,1748599843249,-420.0,0.00021917,2]
[363148281,1748599843258,-420.0,0.00021917,2]
[363148283,1748599843271,-420.0,0.00021917,2]
[363148285,1748599843281,-1016.11,0.00021917,2]
[363148287,1748599843290,-424.2585971,0.00021917,2]
[363148289,1748599843301,-420.0,0.00021917,2]
[363148291,1748599843311,-420.0,0.00021917,2]
[363148293,1748599843321,-627.67,0.00021917,2]
[363148295,1748599843330,-420.0,0.00021917,2]
[363148297,1748599843340,-420.0,0.00021917,2]
[363148299,1748599843351,-1795.22,0.00021917,2]
[363148301,1748599843360,-420.0,0.00021917,2]
[363148303,1748599843371,-420.0,0.00021917,2]
[363148305,1748599843380,-508.74,0.00021917,2]
[363148307,1748599843390,-766.15,0.00021917,2]
[363148310,1748599843401,-460.79504359,0.00021917,2]
[363148312,1748599843411,-420.0,0.00021917,2]
[363148314,1748599843420,-957.38,0.00021917,2]
[363148316,1748599843429,-500.0,0.00021917,2]
[363148318,1748599843439,-691.06,0.00021917,2]
[363148320,1748599843448,-500.0,0.00021917,2]
[363148322,1748599843458,-546.48,0.00021917,2]
[363148324,1748599843467,-500.0,0.00021917,2]
[363148326,1748599843477,-420.0,0.00021917,2]
[363148328,1748599843487,-478.14,0.00021917,2]
[363148330,1748599843496,-973.03,0.00021917,2]
[363148331,1748599843506,-1132.86,0.00021917,2]
[363148333,1748599843518,-487.02,0.00021917,2]
[363148335,1748599843528,-663.16,0.00021917,2]
[363148337,1748599843537,-523.64,0.00021917,2]
[363148339,1748599843547,-2057.35,0.00021917,2]
[363148341,1748599843556,-420.0,0.00021917,2]
[363148343,1748599843566,-420.0,0.00021917,2]
[363148345,1748599843576,-420.0,0.00021917,2]
[363148347,1748599843585,-1389.41,0.00021917,2]
[363148349,1748599843595,-985.73,0.00021917,2]
[363148351,1748599843605,-1378.2,0.00021917,2]
[363148353,1748599843615,-420.0,0.00021917,2]
[363148355,1748599843624,-420.0,0.00021917,2]
[363148357,1748599843633,-420.0,0.00021917,2]
[363148359,1748599843643,-420.0,0.00021917,2]
[363148360,1748599843651,-962.42,0.00021917,2]
[363148362,1748599843662,-420.0,0.00021917,2]
[363148364,1748599843671,-847.64,0.00021917,2]
[363148366,1748599843680,-1419.5,0.00021917,2]
[363148368,1748599843691,-420.0,0.00021917,2]
[363148370,1748599843699,-539.63260274,0.00021917,2]
[363148372,1748599843709,-420.0,0.00021917,2]
[363148374,1748599843718,-420.0,0.00021917,2]
[363148376,1748599843727,-160.0,0.00021917,2]
[363148378,1748599843736,-1000.0,0.00021917,2]
[363148379,1748599843745,-504.06406393,0.00021917,2]
[363148381,1748599843756,-2691.23,0.00021917,2]
[363148383,1748599843768,-160.0,0.00021917,2]
[363148385,1748599843778,-420.0,0.00021917,2]
[363148387,1748599843787,-447.77,0.00021917,2]
[363148389,1748599843796,-160.0,0.00021917,2]
[363148391,1748599843805,-420.0,0.00021917,2]
[363148393,1748599843814,-1822.96,0.00021917,2]
[363148395,1748599843824,-420.0,0.00021917,2]
[363148397,1748599843835,-420.0,0.00021917,2]
[363148399,1748599843845,-470.65412982,0.00021917,2]
[363148401,1748599843854,-634.34,0.00021917,2]
[363148403,1748599843863,-624.79,0.00021917,2]
[363148405,1748599843873,-564.51,0.00021917,2]
[363148407,1748599843882,-420.0,0.00021917,2]
[363148409,1748599843891,-861.58,0.00021917,2]
[363148411,1748599843901,-420.0,0.00021917,2]
[363148413,1748599843911,-420.0,0.00021917,2]
[363148415,1748599843920,-420.0,0.00021917,2]
[363148417,1748599843929,-1043.76,0.00021917,2]
[363148419,1748599843939,-420.0,0.00021917,2]
[363148421,1748599843948,-420.0,0.00021917,2]
[363148423,1748599843958,-420.0,0.00021917,2]
[363148425,1748599843967,-1292.55,0.00021917,2]
[363148427,1748599843976,-1434.63,0.00021917,2]
[363148429,1748599843985,-420.0,0.00021917,2]
[363148431,1748599843994,-1407.63,0.00021917,2]
[363148432,1748599844004,-775.09,0.00021917,2]
[363148434,1748599844014,-420.0,0.00021917,2]
[363148436,1748599844023,-177.18003927,0.00021917,2]
[363148438,1748599844033,-479.88,0.00021917,2]
[363148440,1748599844042,-944.27,0.00021917,2]
[363148442,1748599844051,-1433.82,0.00021917,2]
[363148444,1748599844060,-160.0,0.00021917,2]
[363148446,1748599844070,-420.0,0.00021917,2]
[363148448,1748599844079,-167.23334487,0.00021917,2]
[363148450,1748599844088,-1428.86,0.00021917,2]
[363148452,1748599844098,-420.0,0.00021917,2]
[363148454,1748599844107,-420.0,0.00021917,2]
[363148456,1748599844117,-420.0,0.00021917,2]
[363148458,1748599844126,-420.0,0.00021917,2]
[363148460,1748599844135,-420.98,0.00021917,2]
[363148462,1748599844144,-1067.0,0.00021917,2]
[363148464,1748599844153,-277.13366348,0.00021917,2]
[363148466,1748599844163,-420.0,0.00021917,2]
[363148468,1748599844172,-1838.28,0.00021917,2]
[363148470,1748599844182,-1252.69,0.00021917,2]
[363148472,1748599844193,-420.0,0.00021917,2]
[363148474,1748599844202,-420.0,0.00021917,2]
[363148476,1748599844211,-160.0,0.00021917,2]
[363148478,1748599844220,-689.07,0.00021917,2]
[363148479,1748599844231,-420.0,0.00021917,2]
[363148481,1748599844240,-947.39,0.00021917,2]
[363148483,1748599844249,-469.26,0.00021917,2]
[363148485,1748599844259,-160.0,0.00021917,2]
[363148488,1748599844270,-709.19,0.00021917,2]
[363148490,1748599844279,-1702.12,0.00021917,2]
[363148491,1748599844289,-649.53,0.00021917,2]
[363148493,1748599844298,-2722.8,0.00021917,2]
[363148495,1748599844307,-420.0,0.00021917,2]
[363148497,1748599844316,-261.91502367,0.00021917,2]
[363148499,1748599844325,-500.0,0.00021917,2]
[363148501,1748599844335,-500.0,0.00021917,2]
[363148503,1748599844344,-500.0,0.00021917,2]
[363148505,1748599844353,-420.0,0.00021917,2]
[363148507,1748599844363,-628.81,0.00021917,2]
[363148509,1748599844373,-556.12,0.00021917,2]
[363148511,1748599844382,-986.88,0.00021917,2]
[363148513,1748599844392,-844.04,0.00021917,2]
[363148515,1748599844402,-3892.92,0.00021917,2]
[363148517,1748599844412,-1367.76,0.00021917,2]
[363148519,1748599844422,-942.53,0.00021917,2]
[363148521,1748599844432,-196.06,0.00021917,2]
[363148523,1748599844442,-500.0,0.00021917,2]
[363148525,1748599844451,-943.34,0.00021917,2]
[363148527,1748599844461,-2054.98,0.00021917,2]
[363148530,1748599844471,-614.66,0.00021917,2]
[363148532,1748599844481,-713.78,0.00021917,2]
[363148534,1748599844491,-500.0,0.00021917,2]
[363148536,1748599844501,-895.82,0.00021917,2]
[363148538,1748599844513,-13426.33,0.00021917,2]
[363148540,1748599844522,-420.0,0.00021917,2]
[363148542,1748599844531,-603.35,0.00021917,2]
[363148544,1748599844541,-500.0,0.00021917,2]
[363148546,1748599844550,-500.0,0.00021917,2]
[363148548,1748599844567,-298.87698516,0.00021917,2]
[363148550,1748599844576,-500.0,0.00021917,2]
[363148552,1748599844586,-420.0,0.00021917,2]
[363148554,1748599844595,-1515.79,0.00021917,2]
[363148556,1748599844605,-4061.87,0.00021917,2]
[363148558,1748599844614,-420.0,0.00021917,2]
[363148560,1748599844624,-1251.54,0.00021917,2]
[363148562,1748599844633,-802.7,0.00021917,2]
[363148564,1748599844643,-500.0,0.00021917,2]
[363148566,1748599844653,-655.34,0.00021917,2]
[363148568,1748599844663,-420.0,0.00021917,2]
[363148570,1748599844672,-705.65,0.00021917,2]
[363148572,1748599844682,-10989.02,0.00021917,2]
[363148574,1748599844691,-572.27,0.00021917,2]
[363148576,1748599844700,-672.64,0.00021917,2]
[363148578,1748599844709,-1987.68,0.00021917,2]
[363148580,1748599844719,-420.0,0.00021917,2]
[363148582,1748599844728,-420.0,0.00021917,2]
[363148584,1748599844737,-3356.55,0.00021917,2]
[363148586,1748599844747,-420.0,0.00021917,2]
[363148588,1748599844756,-420.0,0.00021917,2]
[363148590,1748599844767,-2318.6,0.00021917,2]
[363148592,1748599844776,-420.0,0.00021917,2]
[363148594,1748599844785,-1271.01,0.00021917,2]
[363148596,1748599844795,-728.13,0.00021917,2]
[363148598,1748599844804,-1210.05,0.00021917,2]
[363148600,1748599844814,-420.0,0.00021917,2]
[363148602,1748599844825,-502.76986875,0.00021917,2]
[363148604,1748599844834,-420.0,0.00021917,2]
[363148606,1748599844843,-6714.97,0.00021917,2]
[363148608,1748599844854,-420.0,0.00021917,2]
[363148610,1748599844864,-488.40666228,0.00021917,2]
[363148612,1748599844874,-734.45,0.00021917,2]
[363148614,1748599844883,-1300.04,0.00021917,2]
[363148616,1748599844893,-420.0,0.00021917,2]
[363148618,1748599844903,-1862.36,0.00021917,2]
[363148620,1748599844913,-420.0,0.00021917,2]
[363148622,1748599844922,-420.0,0.00021917,2]
[363148624,1748599844931,-2193.55,0.00021917,2]
[363148626,1748599844941,-420.0,0.00021917,2]
[363148628,1748599844951,-3076.17,0.00021917,2]
[363148631,1748599844961,-420.0,0.00021917,2]
[363148633,1748599844970,-1597.68,0.00021917,2]
[363148635,1748599844979,-420.0,0.00021917,2]
[363148637,1748599844989,-1433.54,0.00021917,2]
[363148639,1748599844999,-964.34,0.00021917,2]
[363148641,1748599845008,-420.0,0.00021917,2]
[363148643,1748599845020,-4577.96,0.00021917,2]
[363148645,1748599845029,-420.0,0.00021917,2]
[363148647,1748599845039,-420.0,0.00021917,2]
[363148649,1748599845049,-420.0,0.00021917,2]
[363148651,1748599845059,-888.03,0.00021917,2]
[363148653,1748599845069,-420.0,0.00021917,2]
[363148655,1748599845080,-420.0,0.00021917,2]
[363148657,1748599845090,-1846.14,0.00021917,2]
[363148660,1748599845100,-995.42,0.00021917,2]
[363148662,1748599845110,-956.12,0.00021917,2]
[363148664,1748599845119,-480.79,0.00021917,2]
[363148666,1748599845129,-420.0,0.00021917,2]
[363148668,1748599845138,-672.09,0.00021917,2]
[363148670,1748599845148,-546.74,0.00021917,2]
[363148672,1748599845158,-505.68514956,0.00021917,2]
[363148674,1748599845167,-1244.53,0.00021917,2]
[363148676,1748599845179,-500.0,0.00021917,2]
[363148678,1748599845195,-420.0,0.00021917,2]
[363148680,1748599845205,-1580.88,0.00021917,2]
[363148682,1748599845215,-3474.59,0.00021917,2]
[363148684,1748599845226,-3417.65,0.00021917,2]
[363148686,1748599845235,-1172.95,0.00021917,2]
[363148688,1748599845245,-1051.4,0.00021917,2]
[363148690,1748599845254,-1571.49,0.00021917,2]
[363148692,1748599845266,-420.0,0.00021917,2]
[363148694,1748599845276,-500.0,0.00021917,2]
[363148696,1748599845286,-5309.5,0.00021917,2]
[363148698,1748599845295,-420.0,0.00021917,2]
[363148700,1748599845305,-558.99489074,0.00021917,2]
[363148702,1748599845315,-792.45,0.00021917,2]
[363148704,1748599845324,-2044.62,0.00021917,2]
[363148706,1748599845336,-420.0,0.00021917,2]
[363148708,1748599845345,-638.58,0.00021917,2]
[363148710,1748599845354,-420.0,0.00021917,2]
[363148712,1748599845364,-420.0,0.00021917,2]
[363148714,1748599845374,-420.0,0.00021917,2]
[363148716,1748599845383,-1348.95,0.00021917,2]
[363148718,1748599845393,-707.45,0.00021917,2]
[363148721,1748599845404,-548.52,0.00021917,2]
[363148723,1748599845414,-488.51,0.00021917,2]
[363148725,1748599845424,-7011.65,0.00021917,2]
[363148727,1748599845434,-435.29,0.00021917,2]
[363148729,1748599845444,-726.64,0.00021917,2]
[363148731,1748599845454,-910.63,0.00021917,2]
[363148733,1748599845464,-992.14,0.00021917,2]
[363148736,1748599845474,-1121.75,0.00021917,2]
[363148738,1748599845484,-170.94847076,0.00021917,2]
[363148740,1748599845495,-420.0,0.00021917,2]
[363148742,1748599845505,-818.76,0.00021917,2]
[363148744,1748599845516,-1819.95,0.00021917,2]
[363148746,1748599845525,-499.18,0.00021917,2]
[363148748,1748599845535,-500.0,0.00021917,2]
[363148750,1748599845545,-638.94,0.00021917,2]
[363148753,1748599845556,-629.25,0.00021917,2]
[363148755,1748599845567,-620.28,0.00021917,2]
[363148757,1748599845577,-1048.22,0.00021917,2]
[363148759,1748599845590,-10971.78,0.00021917,2]
[363148761,1748599845601,-540.20194575,0.00021917,2]
[363148763,1748599845612,-4338.08,0.00021917,2]
[363148765,1748599845624,-420.0,0.00021917,2]
[363148766,1748599845635,-828.67,0.00021917,2]
[363148769,1748599845647,-1502.27,0.00021917,2]
[363148770,1748599845656,-1109.75,0.00021917,2]
[363148772,1748599845666,-420.0,0.00021917,2]
[363148777,1748599845676,-224.72883578,0.00021917,2]
[363148780,1748599845686,-2681.06,0.00021917,2]
[363148783,1748599845696,-420.0,0.00021917,2]
[363148786,1748599845706,-525.71,0.00021917,2]
[363148789,1748599845716,-4073.35,0.00021917,2]
[363148792,1748599845725,-500.0,0.00021917,2]
[363148794,1748599845734,-4114.97,0.00021917,2]
[363148796,1748599845744,-500.0,0.00021917,2]
[363148798,1748599845754,-420.0,0.00021917,2]
[363148800,1748599845765,-420.0,0.00021917,2]
[363148802,1748599845775,-11485.78,0.00021917,2]
[363148804,1748599845785,-420.0,0.00021917,2]
[363148806,1748599845795,-715.82,0.00021917,2]
[363148808,1748599845804,-2341.94,0.00021917,2]
[363148810,1748599845813,-420.0,0.00021917,2]
[363148812,1748599845823,-420.0,0.00021917,2]
[363148814,1748599845832,-3029.58,0.00021917,2]
[363148816,1748599845842,-420.0,0.00021917,2]
[363148818,1748599845852,-500.0,0.00021917,2]
[363148820,1748599845861,-550.51,0.00021917,2]
[363148822,1748599845871,-715.33,0.00021917,2]
[363148824,1748599845880,-420.0,0.00021917,2]
[363148826,1748599845890,-5337.95,0.00021917,2]
[363148828,1748599845900,-4321.5,0.00021917,2]
[363148830,1748599845909,-420.0,0.00021917,2]
[363148832,1748599845920,-8448.77,0.00021917,2]
[363148834,1748599845930,-420.0,0.00021917,2]
[363148836,1748599845940,-1005.43,0.00021917,2]
[363148838,1748599845951,-971.59,0.00021917,2]
[363148840,1748599845960,-420.0,0.00021917,2]
[363148842,1748599845969,-2578.18,0.00021917,2]
[363148844,1748599845979,-1090.79,0.00021917,2]
[363148846,1748599845988,-697.76,0.00021917,2]
[363148848,1748599845997,-489.32,0.00021917,2]
[363148850,1748599846007,-7565.83,0.00021917,2]
[363148852,1748599846018,-4839.29,0.00021917,2]
[363148855,1748599846028,-1296.7,0.00021917,2]
[363148857,1748599846038,-420.0,0.00021917,2]
[363148859,1748599846048,-994.23,0.00021917,2]
[363148861,1748599846058,-476.00454792,0.00021917,2]
[363148863,1748599846068,-1617.4,0.00021917,2]
[363148865,1748599846077,-945.19,0.00021917,2]
[363148867,1748599846087,-420.0,0.00021917,2]
[363148869,1748599846097,-690.23,0.00021917,2]
[363148871,1748599846107,-1222.56,0.00021917,2]
[363148873,1748599846116,-500.0,0.00021917,2]
[363148875,1748599846126,-1115.01,0.00021917,2]
[363148877,1748599846136,-1042.54,0.00021917,2]
[363148879,1748599846146,-592.03,0.00021917,2]
[363148881,1748599846155,-1045.21,0.00021917,2]
[363148883,1748599846165,-663.93,0.00021917,2]
[363148885,1748599846175,-747.21,0.00021917,2]
[363148887,1748599846187,-420.0,0.00021917,2]
[363148889,1748599846197,-1114.73,0.00021917,2]
[363148891,1748599846207,-502.45,0.00021917,2]
[363148893,1748599846217,-2721.31,0.00021917,2]
[363148895,1748599846229,-2264.05,0.00021917,2]
[363148897,1748599846239,-875.57,0.00021917,2]
[363148899,1748599846248,-388.97871371,0.00021917,2]
[363148902,1748599846260,-890.42,0.00021917,2]
[363148904,1748599846272,-420.0,0.00021917,2]
[363148906,1748599846282,-1278.88,0.00021917,2]
[363148908,1748599846291,-742.78,0.00021917,2]
[363148910,1748599846300,-162.98277415,0.00021917,2]
[363148912,1748599846310,-787.22,0.00021917,2]
[363148914,1748599846320,-608.81,0.00021917,2]
[363148916,1748599846329,-563.44,0.00021917,2]
[363148918,1748599846340,-942.64,0.00021917,2]
[363148920,1748599846350,-165.81959145,0.00021917,2]
[363148922,1748599846359,-1567.41,0.00021917,2]
[363148924,1748599846369,-420.0,0.00021917,2]
[363148926,1748599846379,-420.0,0.00021917,2]
[363148928,1748599846392,-431.17,0.00021917,2]
[363148930,1748599846402,-420.0,0.00021917,2]
[363148932,1748599846411,-1355.13,0.00021917,2]
[363148934,1748599846422,-420.0,0.00021917,2]
[363148936,1748599846431,-420.0,0.00021917,2]
[363148938,1748599846441,-435.73,0.00021917,2]
[363148940,1748599846451,-3186.92,0.00021917,2]
[363148942,1748599846461,-420.0,0.00021917,2]
[363148944,1748599846471,-420.0,0.00021917,2]
[363148947,1748599846482,-915.9,0.00021917,2]
[363148949,1748599846492,-626.43,0.00021917,2]
[363148951,1748599846502,-420.90185805,0.00021917,2]
[363148953,1748599846515,-1878.37,0.00021917,2]
[363148955,1748599846525,-1155.57,0.00021917,2]
[363148957,1748599846536,-504.41909689,0.00021917,2]
[363148959,1748599846546,-2203.91,0.00021917,2]
[363148989,1748599846809,-1019.54,0.00021917,2]
[363148991,1748599846819,-881.91,0.00021917,2]
[363148993,1748599846828,-420.0,0.00021917,2]
[363148995,1748599846837,-3462.94,0.00021917,2]
[363148997,1748599846847,-420.0,0.00021917,2]
[363148999,1748599846856,-1250.07,0.00021917,2]
[363149001,1748599846865,-420.0,0.00021917,2]
[363149003,1748599846875,-420.0,0.00021917,2]
[363149005,1748599846885,-420.0,0.00021917,2]
[363149007,1748599846894,-420.0,0.00021917,2]
[363149009,1748599846904,-420.0,0.00021917,2]
[363149011,1748599846913,-6272.12,0.00021917,2]
[363149013,1748599846924,-420.0,0.00021917,2]
[363149015,1748599846933,-484.03,0.00021917,2]
[363149017,1748599846944,-7166.1,0.00021917,2]
[363149019,1748599846954,-595.47,0.00021917,2]
[363149021,1748599846963,-720.5,0.00021917,2]
[363149023,1748599846973,-160.0,0.00021917,2]
[363149025,1748599846983,-500.61,0.00021917,2]
[363149027,1748599846992,-128422.38,0.00021917,2]
[363149029,1748599847002,-4908.29,0.00021917,2]
[363149031,1748599847011,-707.75,0.00021917,2]
[363149033,1748599847021,-420.0,0.00021917,2]
[363149035,1748599847031,-472.94,0.00021917,2]
[363149037,1748599847041,-420.0,0.00021917,2]
[363149039,1748599847050,-11313.46865601,0.00021917,2]
[363149073,1748599847530,-5582.9144837,0.00021917,2]
[363149075,1748599847542,-1182.33465876,0.00021917,2]
[363149077,1748599847553,-1000.0,0.00021917,2]
[363149080,1748599847564,-978.1854242,0.00021917,2]
[363149082,1748599847576,-15467.85677733,0.00021917,2]
[363149084,1748599847586,-3310.48,0.00021917,2]
[363149086,1748599847595,-925.43,0.00021917,2]
[363149088,1748599847606,-1845.81112564,0.00021917,2]
[363149090,1748599847617,-1748.47548661,0.00021917,2]
[363149092,1748599847630,-4951.27338775,0.00021917,2]
[363149094,1748599847639,-677.75,0.00021917,2]
[363149096,1748599847648,-2872.57,0.00021917,2]
[363149098,1748599847657,-608.39,0.00021917,2]
[363149100,1748599847667,-1261.03953893,0.00021917,2]
[363149102,1748599847679,-68.20046107,0.00021917,2]
[363149105,1748599847689,-970.29,0.00021917,2]
[363149107,1748599847698,-246.71839064,0.00021917,2]
[363149110,1748599847716,-1020.52160936,0.00021917,2]
[363149111,1748599847725,-667.38,0.00021917,2]
[363149114,1748599847735,-858.87,0.00021917,2]
[363149116,1748599847744,-420.0,0.00021917,2]
[363149117,1748599847753,-254.79806968,0.00021917,2]
[363149120,1748599847766,-1227.27193032,0.00021917,2]
[363149122,1748599847775,-353.12806968,0.00021917,2]
[363149124,1748599847786,-66.87193032,0.00021917,2]
[363149126,1748599847795,-300.15806969,0.00021917,2]
[363149152,1748599848028,-0.02523867,0.00021917,2]
[363149155,1748599848053,-511.08466066,0.00021917,2]
[363149246,1748599848974,-420.0,0.00021665,4]
[363149247,1748599848995,-1868.0697107,0.000219,2]
[363149249,1748599849006,-38.70203098,0.00021917,2]
[363149251,1748599849016,-420.0,0.00021917,2]
[363149253,1748599849026,-1212.37,0.00021917,2]
[363149255,1748599849036,-420.0,0.00021917,2]
[363149257,1748599849045,-337.36825832,0.00021917,2]
[363149260,1748599849065,-1057.2,0.00021917,2]
[363149422,1748599850667,-682.38174168,0.00021917,2]
[363149424,1748599850677,-1532.99,0.00021917,2]
[363149426,1748599850686,-593.17,0.00021917,2]
[363149428,1748599850695,-358.55825832,0.00021917,2]
[363149430,1748599850706,-61.44174168,0.00021917,2]
[363149432,1748599850716,-1348.95,0.00021917,2]
[363149434,1748599850725,-1597.53,0.00021917,2]
[363149436,1748599850734,-543.48,0.00021917,2]
[363149438,1748599850743,-1086.15,0.00021917,2]
[363149440,1748599850753,-420.0,0.00021917,2]
[363149442,1748599850762,-427.44,0.00021917,2]
[363149445,1748599850775,-420.0,0.00021917,2]
[363149447,1748599850785,-420.0,0.00021917,2]
[363149449,1748599850794,-3190.93,0.00021917,2]
[363149451,1748599850803,-954.35,0.00021917,2]
[363149453,1748599850813,-4131.11462353,0.00021917,2]
[363149476,1748599851024,1414.0,0.000173,5]
[363150485,1748600208713,172.07,0.00016739,2]
[363150487,1748600284107,777.73,0.00018952,2]
[363150493,1748600548422,166.82,0.00013699,2]
[363150508,1748600931368,-267.50273047,0.00019756,2]
[363150509,1748600932894,-151.31886737,0.00019756,2]
[363150510,1748600937820,-301.8186638,0.00019756,2]
[363150514,1748600940668,-154.62860952,0.00019756,2]
[363150515,1748600943300,-151.71534384,0.00019756,2]
[363150680,1748601031900,-584.31,0.00019856,2]
[363150681,1748601031910,-76.84961341,0.00019899,2]
[363150682,1748601031921,-223.15038659,0.00019899,2]
[363150683,1748601031931,-1200.0,0.00019899,2]
[363150684,1748601031940,-3445.89908186,0.000199,2]
[363150685,1748601032058,-387.13222533,0.000199,2]
[363150686,1748601032070,-20008.57001751,0.000199,2]
[363150687,1748601032079,-754.27418629,0.000199,2]
[363150688,1748601032089,-220.41423592,0.000199,2]
[363150689,1748601032099,-754.27418627,0.00019919,2]
[363150690,1748601032109,-754.27418627,0.00019937,2]
[363150691,1748601032118,-171.10391972,0.00019937,2]